fUST/lending_fUST_20240711
["ID","MTS","AMOUNT","RATE_DAILY","PERIOD"]
[331708109,1720675643220,-2373.0107618,0.00020532,2]
[331708110,1720675643241,-391.80627157,0.00021095,2]
[331708111,1720675643261,-297.149656,0.00021096,2]
[331708112,1720675643281,-161.944065,0.00021212,2]
[331708113,1720675643301,-250.0,0.000213,2]
[331708114,1720675643321,-861.8864714,0.00021338,2]
[331708115,1720675643341,-750.3151177,0.00021396,2]
[331708116,1720675643360,-624.22318684,0.00021434,2]
[331708117,1720675643379,-250.0,0.00021576,2]
[331708118,1720675643399,-4253.0792301,0.00021576,2]
[331708119,1720675643420,-676.5549,0.00021635,2]
[331708120,1720675643441,-182.14889395,0.00021917,2]
[331708121,1720675643462,-166.757365,0.00021918,2]
[331708122,1720675643483,-300.0,0.00022001,2]
[331708123,1720675643504,-300.0,0.00022001,2]
[331708124,1720675643524,-3417.00342578,0.00022002,2]
[331708128,1720675702846,2831.64235514,0.00018899,2]
[331708129,1720675755581,385.79995704,0.00021095,2]
[331708130,1720675765392,-160.11041109,0.00021917,2]
[331708131,1720675765423,-300.0,0.00022001,2]
[331708132,1720675765454,-384.89873875,0.00022002,2]
[331708133,1720675765489,-845.00914984,0.00022002,2]
[331708134,1720675765524,-527.73187547,0.00022002,2]
[331708135,1720675766094,-19725.35681016,0.00022002,2]
[331708136,1720675766114,-260.38179674,0.00022002,2]
[331708137,1720675766134,-217.78162236,0.00022002,2]
[331708138,1720675766154,-217.78162236,0.00022002,2]
[331708139,1720675766175,-154.62117811,0.00022288,2]
[331708140,1720675766194,-620.21115934,0.00022506,2]
[331708141,1720675766216,-391.80627157,0.00022579,2]
[331708142,1720675766237,-166.757365,0.00022773,2]
[331708143,1720675766258,-154.71780263,0.00022907,2]
[331708144,1720675766279,-587.52851447,0.00022907,2]
[331708145,1720675766300,-493.91941855,0.00022943,2]
[331708146,1720675771612,391.80627157,0.0002243,2]
[331708147,1720675790385,-889.36415334,0.00023066,2]
[331708148,1720675790436,-889.36415334,0.00023066,2]
[331708149,1720675810824,230.58632631,0.00022907,2]
[331708177,1720675832607,-3514.96905366,0.00023066,2]
[331708178,1720675832618,-649.32592145,0.00023077,2]
[331708265,1720675838586,-1097.78375323,0.00023077,2]
[331708268,1720675838596,-366.69138635,0.00023177,2]
[331708269,1720675838607,-2182.47716221,0.00023453,2]
[331708271,1720675838618,-166.757365,0.00023627,2]
[331708272,1720675838628,-620.01055797,0.00023631,2]
[331708274,1720675838638,-492.55302453,0.00023968,2]
[331708276,1720675838647,-206.81773978,0.00024,2]
[331708278,1720675838656,-610.44931723,0.0002448,2]
[331708280,1720675838666,-155.45465387,0.00024481,2]
[331708282,1720675838676,-166.757365,0.00024482,2]
[331708284,1720675838685,-243.97778221,0.00025,2]
[331708286,1720675838696,-442.67873852,0.00025381,2]
[331708288,1720675838705,-20831.61156774,0.00025401,2]
[331708290,1720675838714,-731.96319471,0.00025401,2]
[331708292,1720675838724,-643.87,0.0002547,3]
[331708294,1720675838733,-16649.07,0.00025471,3]
[331708295,1720675838742,-13874.22,0.00025471,3]
[331708297,1720675838753,-11561.85,0.00025471,3]
[331708300,1720675838763,-500.0,0.0002548,2]
[331708302,1720675838776,-500.0,0.0002548,2]
[331708304,1720675838786,-500.0,0.0002548,2]
[331708306,1720675838797,-500.0,0.0002548,2]
[331708308,1720675838807,-195.01048906,0.0002548,2]
[331708310,1720675838817,-500.0,0.0002548,2]
[331708312,1720675838827,-437.11435939,0.0002548,2]
[331708314,1720675838837,-500.0,0.0002548,2]
[331708315,1720675838848,-500.0,0.0002548,2]
[331708317,1720675838860,-500.0,0.0002548,2]
[331708319,1720675838871,-500.0,0.0002548,2]
[331708321,1720675838880,-500.0,0.0002548,2]
[331708323,1720675838891,-509.17876094,0.0002548,2]
[331708325,1720675838902,-486.76733167,0.0002548,2]
[331708327,1720675838912,-500.0,0.0002548,2]
[331708329,1720675838923,-500.0,0.0002548,2]
[331708331,1720675838933,-500.0,0.0002548,2]
[331708333,1720675838944,-500.0,0.0002548,2]
[331708335,1720675838954,-500.0,0.0002548,2]
[331708337,1720675838964,-500.0,0.0002548,2]
[331708339,1720675838975,-500.0,0.0002548,2]
[331708341,1720675838986,-500.0,0.0002548,2]
[331708343,1720675838997,-513.24583493,0.0002548,2]
[331708345,1720675839007,-500.0,0.0002548,2]
[331708347,1720675839017,-500.0,0.0002548,2]
[331708349,1720675839028,-500.0,0.0002548,2]
[331708351,1720675839038,-165.19637018,0.0002548,2]
[331708353,1720675839049,-500.0,0.0002548,2]
[331708355,1720675839059,-500.0,0.0002548,2]
[331708357,1720675839069,-500.0,0.0002548,2]
[331708359,1720675839080,-500.0,0.0002548,2]
[331708361,1720675839091,-500.0,0.0002548,2]
[331708363,1720675839103,-500.0,0.0002548,2]
[331708365,1720675839113,-362.05505217,0.0002548,2]
[331708367,1720675839123,-500.0,0.0002548,2]
[331708369,1720675839134,-500.0,0.0002548,2]
[331708371,1720675839143,-500.0,0.0002548,2]
[331708373,1720675839154,-500.0,0.0002548,2]
[331708375,1720675839165,-407.299361,0.0002548,2]
[331708377,1720675839175,-500.0,0.0002548,2]
[331708379,1720675839185,-173.35265737,0.0002548,2]
[331708381,1720675839195,-500.0,0.0002548,2]
[331708383,1720675839206,-504.84291816,0.0002548,2]
[331708385,1720675839216,-500.0,0.0002548,2]
[331708387,1720675839226,-500.0,0.0002548,2]
[331708389,1720675839237,-500.0,0.0002548,2]
[331708391,1720675839247,-500.0,0.0002548,2]
[331708393,1720675839258,-500.0,0.0002548,2]
[331708395,1720675839268,-500.0,0.0002548,2]
[331708397,1720675839278,-500.0,0.0002548,2]
[331708399,1720675839289,-500.0,0.0002548,2]
[331708401,1720675839301,-500.0,0.0002548,2]
[331708403,1720675839311,-564.54264782,0.0002548,2]
[331708405,1720675839322,-500.0,0.0002548,2]
[331708407,1720675839332,-500.0,0.0002548,2]
[331708409,1720675839341,-227.72261854,0.0002548,2]
[331708411,1720675839350,-500.0,0.0002548,2]
[331708413,1720675839361,-500.0,0.0002548,2]
[331708415,1720675839372,-500.0,0.0002548,2]
[331708417,1720675839382,-500.0,0.0002548,2]
[331708418,1720675839392,-500.0,0.0002548,2]
[331708420,1720675839403,-17492.34236044,0.00025481,5]
[331708421,1720675839414,-116353.998356,0.00025481,3]
[331708422,1720675839425,-18101.92801074,0.00025481,5]
[331708423,1720675839435,-199878.50537374,0.00025481,3]
[331708424,1720675839450,-149183.48969526,0.00025481,3]
[331708425,1720675839461,-189.97697738,0.00025501,2]
[331708426,1720675839472,-279.3335,0.00025501,7]
[331708427,1720675839482,-279.3335,0.00025501,7]
[331708428,1720675839493,-28795.54461301,0.00025501,2]
[331708429,1720675839503,-52150.85185038,0.00025501,2]
[331708430,1720675839514,-30000.0,0.00025501,2]
[331708431,1720675839524,-712.61039236,0.00025501,2]
[331708432,1720675839534,-1747.10967462,0.00025567,2]
[331708433,1720675839544,-20831.61156774,0.00025729,2]
[331708434,1720675839555,-150.5,0.00025829,62]
[331708435,1720675839566,-151.0,0.00025838,7]
[331708436,1720675839577,-151.0,0.00025838,7]
[331708437,1720675839588,-157.839308,0.00025838,7]
[331708438,1720675839599,-157.839308,0.00025838,7]
[331708439,1720675839611,-3320.96384,0.00025838,7]
[331708440,1720675839622,-3320.96384,0.00025838,7]
[331708441,1720675839632,-150.5,0.00025839,62]
[331708442,1720675839643,-151.0,0.00025859,7]
[331708443,1720675839654,-150.5,0.00025859,62]
[331708444,1720675839664,-155.17707025,0.00025869,2]
[331708445,1720675839675,-201.03633962,0.00025902,2]
[331708446,1720675839685,-156.3978779,0.00025902,2]
[331708447,1720675839696,-154.66746495,0.00025902,2]
[331708448,1720675839706,-229.23922118,0.00025902,2]
[331708449,1720675839716,-151.0,0.00025977,7]
[331708450,1720675839727,-154.261413,0.00025977,7]
[331708451,1720675839737,-157.839308,0.00025977,7]
[331708452,1720675839748,-157.839308,0.00025977,7]
[331708453,1720675839759,-3320.96384,0.00025977,7]
[331708454,1720675839770,-3320.96384,0.00025977,7]
[331708455,1720675839781,-151.0,0.00025987,7]
[331708456,1720675839792,-175.010961,0.00025987,7]
[331708457,1720675839802,-151.0,0.00025987,7]
[331708458,1720675839813,-151.0,0.00025987,7]
[331708459,1720675839823,-151.0,0.00025987,7]
[331708460,1720675839834,-151.0,0.00025987,7]
[331708461,1720675839844,-20831.61156774,0.00026057,2]
[331708462,1720675839854,-279.3335,0.00026057,7]
[331708463,1720675839865,-279.3335,0.00026057,7]
[331708464,1720675839875,-151.0,0.00026222,7]
[331708465,1720675839885,-228.303785,0.00026222,7]
[331708466,1720675839896,-20831.61156774,0.00026385,2]
[331708467,1720675839906,-200.0,0.00026574,2]
[331708468,1720675839917,-286.10795998,0.00026574,2]
[331708469,1720675839926,-155.77651193,0.00026574,2]
[331708471,1720675839936,-156.81167192,0.00026574,2]
[331708472,1720675839947,-308.55728786,0.00026574,2]
[331708473,1720675839956,-20831.61156774,0.00026713,2]
[331708474,1720675839968,-157.839308,0.00026713,7]
[331708475,1720675839978,-157.839308,0.00026713,7]
[331708476,1720675839988,-3320.96384,0.00026713,7]
[331708477,1720675839998,-3320.96384,0.00026713,7]
[331708478,1720675840008,-151.0,0.00026748,7]
[331708479,1720675840018,-151.0,0.00026748,7]
[331708480,1720675840028,-157.839308,0.00026748,7]
[331708481,1720675840038,-157.839308,0.00026748,7]
[331708482,1720675840047,-3320.96384,0.00026748,7]
[331708483,1720675840057,-3320.96384,0.00026748,7]
[331708484,1720675840067,-151.0,0.00026848,7]
[331708485,1720675840078,-151.0,0.00026849,7]
[331708486,1720675840089,-151.0,0.00026849,7]
[331708488,1720675840099,-151.160005,0.00026849,7]
[331708490,1720675840119,-153.0,0.00026932,2]
[331708491,1720675840133,-153.0,0.00026932,2]
[331708492,1720675840143,-153.0,0.00026932,2]
[331708493,1720675840153,-229.7274674,0.00026932,2]
[331708494,1720675840163,-205.72954865,0.00027184,2]
[331708495,1720675840174,-271.92319854,0.00027184,2]
[331708497,1720675840184,-182.77484663,0.00027194,2]
[331708499,1720675840194,-154.57491897,0.00027194,2]
[331708501,1720675840205,-182.77484663,0.00027194,2]
[331708502,1720675840216,-297.149656,0.00027195,2]
[331708503,1720675840226,-151.0,0.00027276,7]
[331708504,1720675840237,-151.0,0.00027287,7]
[331708505,1720675840247,-500.0,0.00027397,2]
[331708506,1720675840257,-500.0,0.00027397,7]
[331708508,1720675840267,-502.13604143,0.00027397,7]
[331708509,1720675840276,-500.0,0.00027397,7]
[331708510,1720675840286,-500.0,0.00027397,7]
[331708511,1720675840297,-500.0,0.00027397,7]
[331708512,1720675840308,-500.0,0.00027397,7]
[331708513,1720675840318,-500.0,0.00027397,7]
[331708514,1720675840328,-500.0,0.00027397,7]
[331708515,1720675840338,-500.0,0.00027397,7]
[331708516,1720675840348,-500.0,0.00027397,7]
[331708517,1720675840361,-500.0,0.00027397,7]
[331708518,1720675840371,-175.5408137,0.00027397,7]
[331708519,1720675840381,-621.05335439,0.00027397,7]
[331708521,1720675840390,-504.89500772,0.00027397,7]
[331708523,1720675840401,-509.32352373,0.00027397,7]
[331708525,1720675840411,-500.62295791,0.00027397,7]
[331708527,1720675840421,-511.39439832,0.00027397,7]
[331708529,1720675840431,-519.68300131,0.00027397,7]
[331708531,1720675840441,-500.0,0.00027397,7]
[331708533,1720675840451,-508.87232539,0.00027397,7]
[331708535,1720675840461,-503.66230659,0.00027397,7]
[331708537,1720675840471,-380.02280024,0.00027397,7]
[331708538,1720675840480,-511.27534355,0.00027397,7]
[331708539,1720675840489,-502.06043175,0.00027397,7]
[331708540,1720675840648,-500.0,0.00027397,7]
[331708541,1720675840658,-578.44407192,0.00027397,7]
[331708542,1720675840668,-474.82168607,0.00027397,7]
[331708543,1720675840677,-459.77097584,0.00027397,7]
[331708544,1720675840686,-511.27066309,0.00027397,7]
[331708545,1720675840695,-506.88250024,0.00027397,7]
[331708547,1720675840704,-515.11182804,0.00027397,7]
[331708549,1720675840714,-516.75697011,0.00027397,7]
[331708550,1720675840723,-830.69,0.00027397,7]
[331708551,1720675840733,-500.0,0.00027397,7]
[331708552,1720675840743,-515.21584444,0.00027397,7]
[331708553,1720675840752,-517.15648468,0.00027397,7]
[331708554,1720675840762,-523.64343137,0.00027397,7]
[331708555,1720675840772,-221.62805921,0.00027397,7]
[331708556,1720675840782,-291.8435049,0.00027397,7]
[331708557,1720675840791,-500.0,0.00027397,7]
[331708558,1720675840801,-503.92547854,0.00027397,7]
[331708559,1720675840810,-529.21350697,0.00027397,7]
[331708560,1720675840820,-502.91551831,0.00027397,7]
[331708561,1720675840829,-505.6596864,0.00027397,7]
[331708562,1720675840838,-511.16768208,0.00027397,7]
[331708563,1720675840846,-347.41848211,0.00027397,7]
[331708564,1720675840858,-515.26768314,0.00027397,7]
[331708565,1720675840871,-692.66,0.00027397,7]
[331708566,1720675840881,-1500.0,0.00027397,7]
[331708567,1720675840890,-505.42514594,0.00027397,7]
[331708568,1720675840906,-500.0,0.00027397,7]
[331708569,1720675840916,-1034.31,0.00027397,7]
[331708570,1720675840926,-516.85066936,0.00027397,7]
[331708571,1720675840936,-151.0,0.00027397,7]
[331708572,1720675840945,-500.0,0.00027397,7]
[331708573,1720675840957,-504.12112158,0.00027397,7]
[331708574,1720675840966,-516.79184332,0.00027397,7]
[331708575,1720675840976,-470.01220556,0.00027397,7]
[331708576,1720675840986,-500.0,0.00027397,7]
[331708577,1720675840996,-632.29556562,0.00027397,7]
[331708578,1720675841005,-202.80589411,0.00027397,7]
[331708579,1720675841015,-500.0,0.00027397,7]
[331708580,1720675841024,-500.0,0.00027397,7]
[331708581,1720675841034,-500.0,0.00027397,7]
[331708582,1720675841044,-500.0,0.00027397,7]
[331708583,1720675841054,-500.0,0.00027397,7]
[331708584,1720675841063,-500.0,0.00027397,7]
[331708585,1720675841073,-500.0,0.00027397,7]
[331708586,1720675841083,-500.0,0.00027397,7]
[331708587,1720675841092,-500.0,0.00027397,7]
[331708588,1720675841102,-500.0,0.00027397,7]
[331708589,1720675841112,-500.0,0.00027397,7]
[331708590,1720675841122,-500.0,0.00027397,7]
[331708591,1720675841131,-483.63792122,0.00027397,7]
[331708592,1720675841141,-500.0,0.00027397,7]
[331708593,1720675841150,-616.81,0.00027397,7]
[331708594,1720675841160,-520.06289906,0.00027397,7]
[331708595,1720675841170,-511.01571177,0.00027397,7]
[331708596,1720675841180,-566.22,0.00027397,7]
[331708597,1720675841190,-554.18,0.00027397,7]
[331708598,1720675841199,-500.0,0.00027397,7]
[331708599,1720675841209,-514.4141306,0.00027397,7]
[331708600,1720675841219,-520.74,0.00027397,7]
[331708601,1720675841229,-181.86153676,0.00027397,7]
[331708602,1720675841238,-500.0,0.00027397,7]
[331708603,1720675841249,-502.13801024,0.00027397,7]
[331708604,1720675841258,-600.0,0.00027397,7]
[331708605,1720675841268,-497.2291867,0.00027397,7]
[331708606,1720675841277,-500.0,0.00027397,7]
[331708607,1720675841287,-507.59917498,0.00027397,7]
[331708608,1720675841298,-509.86080475,0.00027397,7]
[331708609,1720675841309,-290.16021678,0.00027397,7]
[331708610,1720675841319,-532.15749455,0.00027397,7]
[331708611,1720675841328,-511.19878293,0.00027397,7]
[331708612,1720675841337,-639.402386,0.00027397,7]
[331708613,1720675841347,-151.0,0.00027397,7]
[331708614,1720675841357,-151.0,0.00027397,7]
[331708615,1720675841366,-151.0,0.00027397,7]
[331708616,1720675841375,-151.0,0.00027397,7]
[331708617,1720675841385,-223.365942,0.00027397,7]
[331708618,1720675841394,-500.0,0.00027397,7]
[331708619,1720675841404,-500.0,0.00027397,7]
[331708620,1720675841414,-500.0,0.00027397,7]
[331708621,1720675841424,-500.0,0.00027397,7]
[331708622,1720675841433,-500.0,0.00027397,7]
[331708623,1720675841443,-500.0,0.00027397,7]
[331708624,1720675841452,-500.0,0.00027397,7]
[331708625,1720675841462,-500.0,0.00027397,7]
[331708626,1720675841472,-500.0,0.00027397,7]
[331708627,1720675841481,-500.0,0.00027397,7]
[331708628,1720675841491,-500.0,0.00027397,7]
[331708629,1720675841501,-500.0,0.00027397,7]
[331708630,1720675841511,-500.0,0.00027397,7]
[331708631,1720675841521,-500.0,0.00027397,7]
[331708632,1720675841531,-500.0,0.00027397,7]
[331708633,1720675841540,-500.0,0.00027397,7]
[331708634,1720675841550,-327.80685678,0.00027397,7]
[331708635,1720675841559,-500.0,0.00027397,7]
[331708636,1720675841568,-500.0,0.00027397,7]
[331708637,1720675841578,-500.0,0.00027397,7]
[331708638,1720675841587,-882.82,0.00027397,7]
[331708639,1720675841597,-500.0,0.00027397,7]
[331708640,1720675841610,-500.0,0.00027397,7]
[331708641,1720675841623,-500.0,0.00027397,7]
[331708642,1720675841633,-640.5086711,0.00027397,7]
[331708643,1720675841643,-560.99005077,0.00027397,7]
[331708644,1720675841653,-1567.07,0.00027397,7]
[331708645,1720675841663,-4468.81,0.00027397,7]
[331708646,1720675841673,-503.06573629,0.00027397,7]
[331708647,1720675841683,-502.5707357,0.00027397,7]
[331708648,1720675841693,-500.0,0.00027397,7]
[331708649,1720675841703,-500.0,0.00027397,7]
[331708650,1720675841713,-510.29106682,0.00027397,7]
[331708651,1720675841723,-590.09016064,0.00027397,7]
[331708652,1720675841732,-548.31550788,0.00027397,7]
[331708653,1720675841742,-500.0,0.00027397,7]
[331708654,1720675841752,-500.0,0.00027397,7]
[331708655,1720675841762,-843.36,0.00027397,7]
[331708656,1720675841771,-546.03283777,0.00027397,7]
[331708657,1720675841780,-513.23643489,0.00027397,7]
[331708658,1720675841790,-528.52275508,0.00027397,7]
[331708659,1720675841800,-513.80202433,0.00027397,7]
[331708660,1720675841809,-511.98460317,0.00027397,7]
[331708661,1720675841819,-504.19458022,0.00027397,7]
[331708662,1720675841828,-527.78510533,0.00027397,7]
[331708663,1720675841838,-500.0,0.00027397,7]
[331708664,1720675841847,-507.85998537,0.00027397,7]
[331708665,1720675841861,-505.97144806,0.00027397,7]
[331708666,1720675841870,-507.79723685,0.00027397,7]
[331708667,1720675841879,-551.32781378,0.00027397,7]
[331708668,1720675841889,-534.5423837,0.00027397,7]
[331708669,1720675841898,-545.65566074,0.00027397,7]
[331708670,1720675841908,-512.11068226,0.00027397,7]
[331708671,1720675841917,-505.23718193,0.00027397,7]
[331708672,1720675841926,-500.0,0.00027397,7]
[331708673,1720675841936,-505.90317737,0.00027397,7]
[331708674,1720675841946,-500.0,0.00027397,7]
[331708675,1720675841955,-502.8349994,0.00027397,7]
[331708676,1720675841965,-500.0,0.00027397,7]
[331708677,1720675841975,-519.61435432,0.00027397,7]
[331708678,1720675841984,-1089.85,0.00027397,7]
[331708679,1720675841993,-528.30293569,0.00027397,7]
[331708680,1720675842003,-631.79,0.00027397,7]
[331708681,1720675842013,-505.59750575,0.00027397,7]
[331708682,1720675842023,-502.60684401,0.00027397,7]
[331708683,1720675842032,-479.29304862,0.00027397,7]
[331708684,1720675842041,-510.0203626,0.00027397,7]
[331708685,1720675842052,-504.53755586,0.00027397,7]
[331708686,1720675842062,-500.0,0.00027397,7]
[331708687,1720675842071,-500.0,0.00027397,7]
[331708688,1720675842081,-1347.75,0.00027397,4]
[331708689,1720675842090,-505.58590516,0.00027397,7]
[331708690,1720675842100,-151.0,0.00027397,7]
[331708691,1720675842111,-151.0,0.00027397,7]
[331708692,1720675842120,-151.0,0.00027397,7]
[331708693,1720675842129,-151.0,0.00027397,7]
[331708694,1720675842138,-186.525776,0.00027397,7]
[331708695,1720675842147,-155.37826238,0.00027397,7]
[331708696,1720675842157,-500.0,0.00027397,7]
[331708697,1720675842166,-500.0,0.00027397,2]
[331708698,1720675842176,-503.5058541,0.00027397,7]
[331708699,1720675842185,-500.0,0.00027397,7]
[331708700,1720675842194,-500.0,0.00027397,7]
[331708701,1720675842204,-521.92596149,0.00027397,7]
[331708702,1720675842214,-483.32244362,0.00027397,7]
[331708703,1720675842223,-500.0,0.00027397,7]
[331708704,1720675842232,-500.0,0.00027397,7]
[331708705,1720675842242,-500.0,0.00027397,7]
[331708706,1720675842251,-180.47101271,0.00027397,7]
[331708707,1720675842261,-198.85333845,0.00027397,7]
[331708708,1720675842271,-552.6666109,0.00027397,7]
[331708709,1720675842280,-509.54041308,0.00027397,7]
[331708710,1720675842290,-500.0,0.00027397,7]
[331708711,1720675842300,-237.84974112,0.00027397,7]
[331708712,1720675842310,-157.839308,0.00027397,7]
[331708713,1720675842319,-500.0,0.00027397,7]
[331708714,1720675842329,-157.839308,0.00027397,7]
[331708715,1720675842338,-157.839308,0.00027397,7]
[331708716,1720675842348,-157.839308,0.00027397,7]
[331708717,1720675842359,-157.839308,0.00027397,7]
[331708718,1720675842368,-157.839308,0.00027397,7]
[331708719,1720675842378,-157.839308,0.00027397,7]
[331708720,1720675842387,-157.839308,0.00027397,7]
[331708721,1720675842395,-157.839308,0.00027397,7]
[331708722,1720675842405,-157.839308,0.00027397,7]
[331708723,1720675842415,-510.77118145,0.00027397,7]
[331708724,1720675842424,-2751.95,0.00027397,7]
[331708725,1720675842433,-500.0,0.00027397,7]
[331708726,1720675842443,-1505.0,0.00027397,7]
[331708727,1720675842453,-500.0,0.00027397,7]
[331708728,1720675842463,-500.0,0.00027397,2]
[331708729,1720675842472,-500.0,0.00027397,7]
[331708730,1720675842482,-500.0,0.00027397,7]
[331708731,1720675842491,-500.0,0.00027397,7]
[331708732,1720675842501,-500.0,0.00027397,7]
[331708733,1720675842511,-157.78989102,0.00027397,7]
[331708734,1720675842520,-500.0,0.00027397,2]
[331708735,1720675842530,-500.0,0.00027397,2]
[331708736,1720675842539,-500.0,0.00027397,2]
[331708737,1720675842548,-500.0,0.00027397,2]
[331708738,1720675842558,-338.06194986,0.00027397,2]
[331708739,1720675842567,-500.0,0.00027397,2]
[331708740,1720675842577,-500.0,0.00027397,2]
[331708741,1720675842586,-500.0,0.00027397,2]
[331708742,1720675842596,-500.0,0.00027397,2]
[331708743,1720675842605,-309.48727522,0.00027397,2]
[331708744,1720675842615,-500.0,0.00027397,2]
[331708745,1720675842625,-500.0,0.00027397,2]
[331708746,1720675842635,-500.0,0.00027397,2]
[331708747,1720675842646,-500.0,0.00027397,2]
[331708748,1720675842656,-500.0,0.00027397,2]
[331708749,1720675842666,-500.0,0.00027397,2]
[331708750,1720675842675,-500.0,0.00027397,2]
[331708751,1720675842685,-500.0,0.00027397,2]
[331708752,1720675842695,-500.0,0.00027397,2]
[331708753,1720675842705,-500.0,0.00027397,2]
[331708754,1720675842715,-500.0,0.00027397,2]
[331708755,1720675842724,-500.0,0.00027397,2]
[331708756,1720675842734,-500.0,0.00027397,2]
[331708757,1720675842743,-500.0,0.00027397,2]
[331708758,1720675842753,-500.0,0.00027397,2]
[331708759,1720675842763,-534.34959194,0.00027397,2]
[331708760,1720675842772,-500.0,0.00027397,2]
[331708761,1720675842781,-500.0,0.00027397,2]
[331708762,1720675842791,-500.0,0.00027397,2]
[331708763,1720675842800,-500.0,0.00027397,2]
[331708764,1720675842810,-500.0,0.00027397,2]
[331708765,1720675842820,-500.0,0.00027397,2]
[331708766,1720675842830,-500.0,0.00027397,2]
[331708767,1720675842839,-500.0,0.00027397,2]
[331708768,1720675842849,-500.0,0.00027397,2]
[331708770,1720675842859,-500.0,0.00027397,2]
[331708772,1720675842869,-500.0,0.00027397,2]
[331708773,1720675842878,-500.0,0.00027397,2]
[331708774,1720675842888,-500.0,0.00027397,2]
[331708775,1720675842898,-500.0,0.00027397,2]
[331708776,1720675842908,-500.0,0.00027397,2]
[331708777,1720675842918,-500.0,0.00027397,7]
[331708778,1720675842928,-496.17477427,0.00027397,7]
[331708779,1720675842938,-500.0,0.00027397,7]
[331708780,1720675842948,-540.5,0.00027397,7]
[331708781,1720675842957,-500.0,0.00027397,2]
[331708782,1720675842967,-500.0,0.00027397,2]
[331708783,1720675842976,-500.0,0.00027397,2]
[331708785,1720675842986,-442.55754878,0.00027397,2]
[331708787,1720675842995,-500.0,0.00027397,2]
[331708788,1720675843004,-500.0,0.00027397,2]
[331708790,1720675843014,-500.0,0.00027397,2]
[331708799,1720675843110,-500.0,0.00027397,2]
[331708800,1720675843133,-500.0,0.00027397,7]
[331708802,1720675843142,-945.73170719,0.00027397,2]
[331708804,1720675843152,-945.73170719,0.00027397,2]
[331708806,1720675843161,-945.73170719,0.00027397,2]
[331708808,1720675843170,-945.73170719,0.00027397,2]
[331708810,1720675843179,-945.73170719,0.00027397,2]
[331708812,1720675843188,-945.73170719,0.00027397,2]
[331708814,1720675843197,-945.73170719,0.00027397,2]
[331708815,1720675843207,-945.73170719,0.00027397,2]
[331708816,1720675843215,-945.73170719,0.00027397,2]
[331708818,1720675843225,-945.73170719,0.00027397,2]
[331708820,1720675843234,-945.73170719,0.00027397,2]
[331708822,1720675843243,-945.73170719,0.00027397,2]
[331708823,1720675843252,-945.73170719,0.00027397,2]
[331708825,1720675843261,-945.73170719,0.00027397,2]
[331708827,1720675843271,-945.73170719,0.00027397,2]
[331708828,1720675843280,-945.73170719,0.00027397,2]
[331708829,1720675843289,-945.73170719,0.00027397,2]
[331708830,1720675843299,-945.73170719,0.00027397,2]
[331708831,1720675843308,-945.73170719,0.00027397,2]
[331708833,1720675843318,-945.73170719,0.00027397,2]
[331708834,1720675843326,-945.73170719,0.00027397,2]
[331708836,1720675843336,-945.73170719,0.00027397,2]
[331708838,1720675843345,-945.73170719,0.00027397,2]
[331708840,1720675843356,-945.73170719,0.00027397,2]
[331708841,1720675843365,-945.73170719,0.00027397,2]
[331708842,1720675843373,-945.73170719,0.00027397,2]
[331708843,1720675843382,-945.73170719,0.00027397,2]
[331708844,1720675843395,-945.73170719,0.00027397,2]
[331708845,1720675843404,-945.73170719,0.00027397,2]
[331708846,1720675843413,-945.73170719,0.00027397,2]
[331708847,1720675843422,-945.73170719,0.00027397,2]